Cogmind - Beta 14 @@@ ROGUE MODE // 2024.11.23 @ 14:14:27 Player: Fangrelle Result: Smashed by cave-in Performance ------------- Evolutions (0) 0 Regions Visited (1) 200 Robots Destroyed (28) 140 Value Destroyed (698) 698 Prototype IDs (0) 0 Alien Tech Used (0) 0 Bonus (0) 0 TOTAL SCORE: 1038 Bonus ------- None Cogmind --------- Core Integrity 0/250 Matter 235/300 Energy 100/100 System Corruption 13% Temperature Cool (32) Movement Walking (400) Ox4 Location -10/Materials Parts ------- > --- POWER (1) -------- (None) > --- PROPULSION (2) --- Aluminum Leg Aluminum Leg > --- UTILITY (2) ------ Huge Storage Unit > --- WEAPON (2) ------- Mining Laser > --- INVENTORY (25) --- Ion Engine Wheel VTOL Module VTOL Module VTOL Module VTOL Module Improved Heat Sink Improved Heat Sink High-capacity Storage Unit Machine Analyzer Visual Processing Unit Visual Processing Unit EM Pulse Gun EM Pulse Gun Light EM Pulse Cannon Light EM Pulse Cannon Light EM Pulse Cannon Assault Rifle Grenade Launcher Grenade Launcher Datajack Peak State ------------ > --- POWER ------------ Ion Engine > --- PROPULSION ------- VTOL Module VTOL Module > --- UTILITY ---------- Huge Storage Unit Light Armor Plating > --- WEAPON ----------- Light EM Pulse Cannon Light EM Pulse Cannon > --- INVENTORY -------- Ion Engine Wheel Improved Heat Sink Improved Heat Sink High-capacity Storage Unit Machine Analyzer Visual Processing Unit Visual Processing Unit EM Pulse Gun Assault Rifle Grenade Launcher Grenade Launcher Datajack Mining Laser [Rating: 13] Favorites ----------- Power Ion Engine Engine Ion Engine Propulsion Light Treads Treads Light Treads Leg Aluminum Leg Flight Unit VTOL Module Utility Huge Storage Unit Storage Huge Storage Unit Protection Light Armor Plating Weapon EM Pulse Gun Energy Gun EM Pulse Gun Energy Cannon Light EM Pulse Cannon Ballistic Gun Assault Rifle Launcher Grenade Launcher Special Weapon Mining Laser Build | -11 -10 ------- Run | Yrd Mat Slots Evolved . | . . Power . | . . Propulsion . | . . Utility . | . . Weapon . | . . Parts Attached 26 | . 26 Power 1 | . 1 Engine 1 | . 1 Core . | . . Reactor . | . . Propulsion 6 | . 6 Treads 2 | . 2 Leg 2 | . 2 Wheel . | . . Hover . | . . Flight 2 | . 2 Utility 3 | . 3 Device . | . . Storage 1 | . 1 Processor . | . . Hackware . | . . Protection 2 | . 2 Artifact . | . . Weapon 16 | . 16 Energy Gun 4 | . 4 Energy Cannon 2 | . 2 Ballistic Gun 4 | . 4 Ballistic Cannon . | . . Launcher 3 | . 3 Special Weapon 3 | . 3 Impact Weapon . | . . Slashing Weapon . | . . Piercing Weapon . | . . Special Melee Weapon . | . . Unidentified Prototypes . | . . Parts Lost 6 | . 6 Power 1 | . 1 Propulsion 2 | . 2 Utility 1 | . 1 Weapon 2 | . 2 Highest Loss Streak 3 | . 3 To Critical Strikes . | . . Average Slot Usage (%) 95 | . 95 Engine 14 | . 14 Treads 22 | . 22 Leg 2 | . 2 Storage 15 | . 15 Protection 12 | . 12 Energy Gun 9 | . 9 Energy Cannon 3 | . 3 Ballistic Gun 7 | . 7 Special Weapon 4 | . 4 Peak Build Rating 13 | . 13 Average Rating 8 | . 8 On Entrance 6 | 6 6 Naked Turns . | . . Heaviest Build 96 | 14 96 Greatest Support 40 | 20 40 Greatest Overweight (x) 31 | . 31 Average Overweight (x) 2 | . 2 Largest Inventory Capacity 25 | . 25 Average Capacity 24 | . 24 Most Carried 21 | . 21 Average Carried 10 | . 10 Final Capacity 25 | 8 25 Final Carried 21 | 6 21 Class Distribution -------------------- 100% | Mutant Dominant Class ---------------- Mutant | -10/Materials Resources | -11 -10 ----------- Run | Yrd Mat Matter Collected 490 | 200 290 Remotely . | . . Salvage Created 1043 | . 1043 Parts 64 | . 64 Haulers Intercepted 1 | . 1 Recyclers Shooed 2 | . 2 Parts Field Recycled . | . . Retrieved Matter . | . . Parts Self-Destructed . | . . Prevented . | . . Kills | -11 -10 ------- Run | Yrd Mat Combat Hostiles Destroyed 18 | . 18 Guns 16 | . 16 AOE 2 | . 2 Classes Destroyed 8 | . 8 Builder 1 | . 1 Hauler 1 | . 1 Recycler 3 | . 3 Mechanic 1 | . 1 Operator 1 | . 1 Watcher 3 | . 3 Swarmer 3 | . 3 Grunt 15 | . 15 Best Kill Streak 6 | . 6 Combat Bots Only 6 | . 6 Max Kills in Single Turn 2 | . 2 Gunslinging 1 | . 1 Exploded 1 | . 1 Melee . | . . Uniques/NPCs Destroyed . | . . Combat | -11 -10 -------- Run | Yrd Mat Hostile Shots Fired 90 | . 90 Missed 22 | . 22 Damage Taken 1212 | . 1212 Core 260 | . 260 Absorbed by Shields . | . . Redirected to Shielding 19 | . 19 Regen/Repaired (Parts) 38 | . 38 Core Remaining (%) 100 | 100 . Volleys Fired 73 | . 73 Largest 2 | . 2 Hottest 120 | . 120 Shots Fired 131 | . 131 Gun 111 | . 111 Cannon . | . . Launcher 5 | . 5 Special 15 | . 15 Kinetic 25 | . 25 Thermal 15 | . 15 Explosive 5 | . 5 Electromagnetic 86 | . 86 Robot Hit Streak 9 | . 9 Robot Miss Streak 5 | . 5 Penetration Max . | . . Secondary Targets 1 | . 1 Max Gunslinging Chain 1 | . 1 Shots Hit Robots 66 | . 66 Core Hits 40 | . 40 Critical Kills . | . . Critical Parts Destroyed . | . . Critical Strikes 1 | . 1 Corrupt 1 | . 1 Melee Attacks . | . . Impact . | . . Slashing . | . . Piercing . | . . Sneak Attacks . | . . Combat Hostiles . | . . Follow-up Attacks . | . . Damage Inflicted 1349 | . 1349 Guns 946 | . 946 Cannons . | . . Explosions 379 | . 379 Melee . | . . Ramming . | . . Kinetic 171 | . 171 Thermal 194 | . 194 Explosive 209 | . 209 Electromagnetic 775 | . 775 Impact . | . . Slashing . | . . Piercing . | . . Highest Corruption 1 | . 1 Average Corruption 1 | . 1 Corruption Purged . | . . Corruption Blocked . | . . Effects 15 | . 15 Message Errors 3 | . 3 Heat Flow Errors 3 | . 3 Energy Discharges 6 | . 6 Data Loss (minor) 2 | . 2 Misfires 1 | . 1 Overload Shots . | . . Overflow Damage . | . . Projectiles . | . . Explosions . | . . Melee . | . . Knockbacks . | . . Impact . | . . Kinetic . | . . Secondary . | . . Self-Inflicted Damage 34 | . 34 Shots 1 | . 1 Rammed . | . . Targets Rammed . | . . Kicked . | . . Crushed . | . . Highest Temperature 318 | . 318 Average Temperature 90 | . 90 Received Heat Transfer 372 | . 372 Effects 1 | . 1 Energy Bleed 1 | . 1 Siege Activations . | . . Robots Corrupted 1 | . 1 Combat Hostiles . | . . Parts Fried 5 | . 5 Impact Corruptions . | . . Robots Melted . | . . Combat Hostiles . | . . Parts Melted 1 | . 1 Heat Transferred 350 | . 350 Parts Sabotaged . | . . Parts Stolen . | . . Parts Stripped . | . . Power Chain Reactions 4 | . 4 Alert | -11 -10 ------- Run | Yrd Mat Peak Influence 228 | . 228 Initial . | . . Average 72 | . 72 Maximum Alert Level 1 | . 1 Low Security (%) 98 | . 98 Level 1 1 | . 1 Level 2 . | . . Level 3 . | . . Level 4 . | . . Level 5 . | . . High Security . | . . Max Security . | . . Squads Dispatched 4 | . 4 Investigation 3 | . 3 Extermination . | . . Reinforcement 1 | . 1 Assault . | . . Garrison . | . . Intercept . | . . Searches Triggered . | . . Construction Impeded . | . . Haulers Reinforced . | . . Active Scanning Responses . | . . Cargo Convoy Interrupts . | . . Stealth | -11 -10 --------- Run | Yrd Mat Distress Signals 1 | . 1 Communications Jammed . | . . Distress Signals . | . . Times Spotted 22 | . 22 Peak Tracking Total 3 | . 3 Tactical Retreats . | . . Traps | -11 -10 ------- Run | Yrd Mat Traps Triggered 3 | . 3 Indirectly . | . . Trap Hack Attempts . | . . Triggered . | . . Disarmed . | . . Reprogrammed . | . . Reused . | . . Traps Extracted . | . . Installed . | . . Triggered . | . . Machines | -11 -10 ---------- Run | Yrd Mat Machines Disabled 3 | . 3 Max in Single Turn 1 | . 1 Machines Repaired . | . . Machines Dismantled . | . . Machines Sabotaged . | . . Overloaded Fab Kills . | . . Hacking | -11 -10 --------- Run | Yrd Mat Machines Accessed 8 | . 8 Terminals 5 | . 5 Fabricators . | . . Repair Stations 1 | . 1 Recycling Units 2 | . 2 Scanalyzers . | . . Garrison Access . | . . Total Hacks 24 | . 24 Successful 17 | . 17 Failed 7 | . 7 Catastrophic 1 | . 1 Database Lockouts . | . . Manual 20 | . 20 Terminals 18 | . 18 Fabricators . | . . Repair Stations 2 | . 2 Recycling Units 4 | . 4 Scanalyzers . | . . Garrison Access . | . . Terminal Hacks 2 | . 2 Robot Analysis 2 | . 2 Fabricator Hacks . | . . Repair Station Hacks 2 | . 2 Scan Component 1 | . 1 Repair 1 | . 1 Recycling Unit Hacks 2 | . 2 Retrieve Components 2 | . 2 Scanalyzer . | . . Garrison Access Hacks . | . . Unauthorized Hacks 11 | . 11 Terminals 9 | . 9 Assimilate 3 | . 3 Botnet 4 | . 4 Operators 1 | . 1 Skim 1 | . 1 Fabricators . | . . Repair Stations . | . . Recycling Units 2 | . 2 Tunnel 2 | . 2 Scanalyzers . | . . Garrison Access . | . . Data Cores Recovered . | . . Used . | . . Hacking Detections 5 | . 5 Full Trace Events . | . . Feedback Events . | . . Feedback Blocked . | . . Robot Schematics Acquired . | . . Robots Built . | . . Authchips . | . . Time . | . . Total Robot Build Rating . | . . Part Schematics Acquired . | . . Parts Built . | . . Authchips . | . . Time . | . . Total Part Build Rating . | . . Parts Repaired 1 | . 1 Time 26 | . 26 Parts Recycled . | . . Recycled Matter . | . . Retrieved Matter . | . . Retrieved Components 19 | . 19 Parts Scanalyzed . | . . Part Schematics Acquired . | . . Parts Damaged . | . . Bothacking | -11 -10 ------------ Run | Yrd Mat Used RIF Installer . | . . Robots Hacked . | . . Non-combat . | . . Combat . | . . Robot Hacks Applied . | . . Relay Couplers Released . | . . Fabnet Peak Effective % . | . . Robots Rewired . | . . Allies Hacked . | . . Hacks Repelled . | . . Allies | -11 -10 -------- Run | Yrd Mat Total Allies . | . . Largest Group . | . . Highest-Rated Group . | . . Highest-Rated Ally . | . . Total Orders . | . . Ally Attacks . | . . Total Damage . | . . Kills . | . . Allies Corrupted . | . . Allies Melted . | . . Intel | -11 -10 ------- Run | Yrd Mat Robot Analysis Total 2 | . 2 Derelict Logs Recovered . | . . Drone Launches . | . . Drone Recoveries . | . . Exploration | -11 -10 ------------- Run | Yrd Mat Turns Passed 3584 | . 3584 Spaces Moved 752 | 1 751 Core 15 | . 15 Treads 675 | . 675 Legs 56 | 1 55 Wheels . | . . Hover . | . . Flight 6 | . 6 Fastest Speed 120 | 120 160 Average Speed 355 | 120 355 Slowest Speed 1875 | 120 1875 Overloaded Moves . | . . Propulsion Burnouts . | . . Robots Hopped . | . . Cave-ins Triggered 1 | . 1 Exploration Rate (%) 44 | 2 86 Regions Visited 1 Branch Regions . Pre-discovered Areas 2 | . 2 Known Exits Taken . | . . Unknown Exits Taken 1 | 1 . Scrap Searched . | . . Spaces Dug 15 | . 15 Terrain Destroyed 57 | . 57 Melee . | . . Projectile 14 | . 14 AOE 43 | . 43 Terrain Rammed . | . . Walls Destroyed . | . . Machines Disabled . | . . Actions | -11 -10 --------- Run | Yrd Mat Total 1496 | . 1496 Wait 620 | . 620 Move 751 | . 751 Hop . | . . Pick Up 16 | . 16 Fast Attach 9 | . 9 Attach 3 | . 3 Detach 4 | . 4 Swap 14 | . 14 Drop 6 | . 6 Fire 73 | . 73 Melee . | . . Ram . | . . Kick . | . . Crush . | . . Escape Stasis . | . . Rewire . | . . Trap . | . . Miscellaneous . | . . Route ------- -11/Scrapyard -10/Materials (discovered 4 exits: [*Mat x2] / [*Min] / [*Sub]) History --------- Turn | Location | Event 1 | -11/Scrapyard | Discovered new exit (range 0) 1 | -11/Scrapyard | Entered Materials 316 | -10/Materials | Build established: Mutant 798 | -10/Materials | Discovered new exit (range 8) 1160 | -10/Materials | Discovered new exit (range 7) 1601 | -10/Materials | Repaired EM Pulse Gun 2835 | -10/Materials | Discovered new exit (range 16) 2872 | -10/Materials | Core integrity fell below 50% 3395 | -10/Materials | Discovered new exit (range 8) 3586 | -10/Materials | Crushed by falling debris 3586 | -10/Materials | Smashed by cave-in Last Messages --------------- 03095_ Acquired Visual Processing Unit. 03129_ Acquired VTOL Module. 03172_ K-01 Serf collects debris. 03199_ Acquired Aluminum Leg. 03218_ Acquired 14 matter. 03222_ Acquired 34 matter. 03230_ Acquired 21 matter. 03239_ Dropped Ion Engine. 03252_ Acquired Lgt. EM Pulse Cannon. 03302_ Acquired EM Pulse Gun. 03395_ EXIT=FOUND 03574_ U-05 Engineer builds a Wall. 03586_ The unstable cave ceiling collapses. 03586_ Crushed by falling debris. 03586_ Lgt. Armor Plating destroyed. 03586_ System corrupted by crushing effect (+5). 03586_ Lgt. EM Pulse Cannon destroyed. 03586_ System corrupted by crushing effect (+4). 03586_ Ion Engine destroyed. 03586_ System corrupted by crushing effect (+3). Map ----- +----------------------------------------------------+ | # ########## #?????????# ###!!!!##???? | | "" + ###???????# ##! !#???? | | "" # % ########### ## #???? | | "" # # ##### | | ######+####### %########## ! | | ######## ![ #??## ### ## | | ???????#*!= #???# #?# + | | ???????# [=Y" #???# #?# ! ## ########### | | ???????# =="" #???# #?# ####+#####???????# | | ???????# #???# #?#""" # *%= #???????# | | ???????# #???# #?#""" # """ #???????# | | ???????########???# #?#""" # R" #???????# | | ???????#####??????# [ #?#""" # """ #???????# | | ?????????# #??????# % #?#""" # #???????# | | ?????????# ##?????# #?# # """ #???????## | | ?????????########?# #?####+### """ #????????? | | ??????????# ### #### # """ #????????? | | ??????????# " # #????????? | | ??????????# T "T ##########????????? | | ??????????# #?????????????????? | | ??????????# #######+## #?????????????????? | | ???######### ##????# ## ##?????????????????? | | ???# # #?????# ## #??????????????????? | | ???# """ + #?????# ## a#??????????????????? | | ???# """ # #?????# u## ####???????????????? | | ???# """ # #?????# @; = ????????? | | ???# ?# #?????# ## / ????????? | | ????######?# #?????#<#### " ????????? | | ??########## #?????##???# T !!?????????? | | ??# # #??????????# " ??! !!?????????? | | ??# """ # ##?????????# ? ???? ?!??????????? | | ??# """ # #####??????# ? ??????????????????? | | ??# """ #=* #??????? ? ??????????????????? | | ??# + ! #?????????????????????????????? | | ??# """ # < * ! #???????????????????o?????????? | | ??# """ # ! #?????????????????????????????? | | ??# """ ##### #?????????????????????????????? | | ??# ### # #?????????????????????????????? | | ??##########??######?????????????????????????????? | | ?????????????????????????????????????????????????? | | ?????????????????????????????????????????????????? | | ?????????????????????????????????????????????????? | | ??????????????????????????????????????o??????????? | | ?????????????????????????????????????????????????? | | ?????????????????????????????????????????????????? | | ?????????????????????????????????????????????????? | | | | | | | | | +----------------------------------------------------+ Best States ------------- Heat Dissipation 25 Energy Generation 10 Energy Capacity 250 Matter Stores 300 Matter Capacity 300 Sight Range 16 Terrain Scan Density 10 Armor Coverage 150 Weapon Shielding 33 Evasion (%) 40 Recoil Reduction 2 Item Schematics ----------------- None Robot Schematics ------------------ None Fabricated ------------ Nothing Alien Tech Used ----------------- None Achievements -------------- None Challenges ------------ None Game ------ Seed PitchforkBackupRipteeth Manual? 0 Play Time 00:13:03 Cumulative 128.1 hours Start 2024.11.23 @ 12:38:58 End 2024.11.23 @ 14:14:27 Sessions 3 Manual Loads 0 Difficulty Rogue Special Mode None Game No. 239 Rogue 239 Adventurer 0 Explorer 0 Win Type - Total 0 Types 0/0/0/0/0/0/0/0/0 Lore% 43 Gallery% 40 Achievement% 36 Wizard Run 0 Options --------- Layout 0 ASCII 0 Keyboard 0 Movement Mouse Keybinds 0 Fullscreen 1 Font 24/Smallcaps Map View 91x25 Zoom Use 55% Tactical HUD 1 Map Filters NONE Filters NONE Steam 1 RUN: 1b4c3112-918c-4dae-9029-f2a04b2b96ac